Cogmind - Beta 16 @@@ ROGUE MODE // 2025.12.19 @ 08:46:57 Player: PE-P51 Result: Destroyed by GZ-4CI(R) with Subdweller Laser Performance ------------- Evolutions (0) 0 Regions Visited (2) 400 Robots Destroyed (34) 170 Value Destroyed (802) 802 Prototype IDs (4) 80 Alien Tech Used (0) 0 Bonus (0) 0 TOTAL SCORE: 1452 Bonus ------- None Cogmind --------- Core Integrity 0/250 Matter 300/300 Energy 175/200 System Corruption 0% Temperature Hot (210) Movement Rolling (130) Ox2 Location -10/Subcaves Parts ------- > --- POWER (1) -------- Subdweller Power Source > --- PROPULSION (2) --- Subdweller Monowheel Subdweller Monowheel > --- UTILITY (2) ------ Huge Storage Unit Makeshift Light Armor Plating > --- WEAPON (2) ------- Subdweller Beam Cannon Subdweller Beam Cannon > --- INVENTORY (25) --- Subdweller Power Source Light Treads Light Treads Light Treads Flight Unit Flight Unit Flight Unit Flight Unit Flight Unit Medium Storage Unit Weight Redist. System Subdweller Optics Scrap Shield Power Bank EM Pulse Gun Beam Cannon Beam Cannon Assault Rifle Assault Rifle Light Assault Rifle Subdweller Machine Gun Grenade Launcher Grenade Launcher Hammer Peak State ------------ > --- POWER ------------ Subdweller Power Source > --- PROPULSION ------- Subdweller Monowheel Subdweller Monowheel > --- UTILITY ---------- Huge Storage Unit Makeshift Light Armor Plating > --- WEAPON ----------- Subdweller Beam Cannon Subdweller Machine Gun > --- INVENTORY -------- Light Ion Engine Light Treads Light Treads Light Treads Flight Unit Flight Unit Flight Unit Flight Unit Flight Unit Flight Unit Medium Storage Unit Weight Redist. System Signal Interpreter Scrap Shield Power Bank EM Pulse Gun Beam Cannon Beam Cannon Beam Cannon Assault Rifle Assault Rifle Grenade Launcher Grenade Launcher Hammer [Rating: 18] Favorites ----------- Power Ion Engine Engine Ion Engine Propulsion Light Treads Treads Light Treads Leg Aluminum Leg Wheel Subdweller Monowheel Utility Huge Storage Unit Device Heat Sink Storage Huge Storage Unit Protection Makeshift Light Armor Plating Weapon Beam Cannon Energy Cannon Beam Cannon Ballistic Gun Assault Rifle Launcher Grenade Launcher Build | -11 -10 -10 ------- Run | Yrd Mat Sub Slots Evolved . | . . . Power . | . . . Propulsion . | . . . Utility . | . . . Weapon . | . . . Parts Attached 29 | . 14 15 Power 5 | . 1 4 Engine 5 | . 1 4 Core . | . . . Reactor . | . . . Propulsion 8 | . 4 4 Treads 4 | . 4 . Leg . | . . . Wheel 4 | . . 4 Hover . | . . . Flight . | . . . Utility 8 | . 5 3 Device 4 | . 2 2 Storage 2 | . 2 . Processor . | . . . Hackware . | . . . Protection 2 | . 1 1 Artifact . | . . . Weapon 8 | . 4 4 Energy Gun . | . . . Energy Cannon 6 | . 4 2 Ballistic Gun 1 | . . 1 Ballistic Cannon . | . . . Launcher 1 | . . 1 Special Weapon . | . . . Impact Weapon . | . . . Slashing Weapon . | . . . Piercing Weapon . | . . . Special Melee Weapon . | . . . Unidentified Prototypes . | . . . Parts Lost 5 | . 1 4 Power 2 | . . 2 Propulsion 2 | . 1 1 Utility . | . . . Weapon 1 | . . 1 Highest Loss Streak 1 | . 1 1 To Critical Strikes . | . . . Average Backups 21 | . 19 24 Power 1 | . 1 1 Propulsion 9 | . 8 9 Utility 3 | . 2 3 Weapon 7 | . 6 9 Tool/Special . | . . . Unused Backups 27 | . 5 22 Power . | . . . Propulsion 13 | . 4 9 Utility 6 | . 1 5 Weapon 8 | . . 8 Tool/Special . | . . . Average Slot Usage (%) 98 | . 99 97 Engine 13 | . 14 12 Treads 19 | . 24 13 Leg 1 | . 3 . Wheel 6 | . . 14 Device 12 | . 13 11 Storage 14 | . 14 14 Protection 1 | . . 2 Energy Cannon 21 | . 22 20 Ballistic Gun 5 | . 5 5 Peak Build Rating 18 | . 9 18 Average Rating 10 | . 8 12 On Entrance 7 | 6 6 9 Avg Prop Armor Cover (%) 5 | . . 5 Naked Turns . | . . . Heaviest Build 105 | 12 92 105 Greatest Support 40 | 20 40 40 Greatest Overweight (x) 4 | . 4 4 Average Overweight (x) 1 | . 1 2 Largest Inventory Capacity 25 | . 25 25 Average Capacity 23 | . 23 25 Most Carried 25 | . 25 25 Average Carried 21 | . 19 24 Final Capacity 25 | 8 25 25 Final Carried 25 | 6 25 25 Class Distribution -------------------- 80% | Mutant 19% | Scavenger-Mutant Dominant Class ---------------- Mutant | -10/Materials Mutant | -10/Subcaves Resources | -11 -10 -10 ----------- Run | Yrd Mat Sub Matter Collected 693 | 200 187 306 Remotely . | . . . Salvage Created 975 | . 528 447 Parts 68 | . 32 36 Haulers Intercepted 1 | . 1 . Recyclers Shooed . | . . . Parts Field Recycled . | . . . Retrieved Matter . | . . . Parts Self-Destructed 7 | . . 7 Prevented . | . . . Parts Restored . | . . . Kills | -11 -10 -10 ------- Run | Yrd Mat Sub Combat Hostiles Destroyed 31 | . 18 13 Melee 1 | . 1 . Guns 7 | . 4 3 Cannons 20 | . 13 7 AOE 3 | . . 3 Classes Destroyed 7 | . 5 2 Worker 1 | . 1 . Hauler 1 | . 1 . Watcher 1 | . 1 . Swarmer 14 | . 11 3 Grunt 7 | . 7 . Sentry 1 | . . 1 Subdweller 9 | . . 9 Best Kill Streak 3 | . 3 3 Combat Bots Only 3 | . 3 3 Max Kills in Single Turn 3 | . 1 3 Gunslinging . | . . . Exploded 3 | . . 3 Melee 1 | . 1 . Uniques/NPCs Destroyed . | . . . Combat | -11 -10 -10 -------- Run | Yrd Mat Sub Hostile Shots Fired 141 | . 91 50 Missed 36 | . 21 15 Hits 105 | . 70 35 Projectile 105 | . 70 35 Damage Taken 1323 | . 671 652 Core 258 | . 88 170 Absorbed by Shields . | . . . Core Remaining (%) 100 | 100 . . Volleys Fired 92 | . 44 48 Largest 2 | . 2 2 Hottest 160 | . 120 160 Shots Fired 179 | . 88 91 Gun 40 | . 22 18 Cannon 134 | . 66 68 Launcher 5 | . . 5 Special . | . . . Kinetic 40 | . 22 18 Thermal 134 | . 66 68 Explosive 5 | . . 5 Electromagnetic . | . . . Robot Hit Streak 10 | . 6 10 Robot Miss Streak 3 | . 3 2 Penetration Max . | . . . Secondary Targets . | . . . Shots Hit Robots 89 | . 41 48 Core Hits 43 | . 22 21 Critical Kills . | . . . Critical Parts Destroyed . | . . . Critical Strikes . | . . . Melee Attacks . | . . . Impact . | . . . Slashing . | . . . Piercing . | . . . Sneak Attacks . | . . . Combat Hostiles . | . . . Follow-up Attacks . | . . . Damage Inflicted 1825 | . 724 1101 Guns 257 | . 99 158 Cannons 1368 | . 597 771 Explosions 172 | . . 172 Melee . | . . . Ramming 28 | . 28 . Kinetic 257 | . 99 158 Thermal 1368 | . 597 771 Explosive 172 | . . 172 Electromagnetic . | . . . Impact . | . . . Slashing . | . . . Piercing . | . . . Highest Corruption . | . . . Average Corruption . | . . . Corruption Purged . | . . . Corruption Blocked . | . . . Overload Shots . | . . . Overflow Damage . | . . . Projectiles . | . . . Explosions . | . . . Melee . | . . . Knockbacks . | . . . Impact . | . . . Kinetic . | . . . Secondary . | . . . Self-Inflicted Damage 50 | . . 50 Shots 3 | . . 3 Rammed 3 | . 3 . Targets Rammed 8 | . 8 . Kicked 4 | . 4 . Crushed 1 | . 1 . Highest Temperature 312 | . 312 204 Average Temperature 74 | . 79 59 Received Heat Transfer 288 | . 210 78 Siege Activations . | . . . Martial Activations . | . . . Shielding Activations . | . . . Robots Disrupted . | . . . Combat Hostiles . | . . . Robots Corrupted . | . . . Combat Hostiles . | . . . Parts Fried . | . . . Impact Corruptions . | . . . Robots Melted . | . . . Combat Hostiles . | . . . Parts Melted . | . . . Heat Transferred 2590 | . 1258 1332 Parts Sabotaged . | . . . Parts Stolen . | . . . Parts Stripped . | . . . Power Chain Reactions . | . . . Alert | -11 -10 -10 ------- Run | Yrd Mat Sub Maximum Alert Level . | . . . Low Security (%) 100 | . 100 . Level 1 . | . . . Level 2 . | . . . Level 3 . | . . . Level 4 . | . . . Level 5 . | . . . High Security . | . . . Max Security . | . . . Peak Influence 120 | . 120 . Initial . | . . . Average 46 | . 46 . Influence Increases 607 | . 517 90 Destroy 0b10 Robot/C 440 | . 360 80 Destroy 0b10 Robot/NC 15 | . 15 . Destroy Leader 84 | . 74 10 Successful Hack 34 | . 34 . Destroy Structure 4 | . 4 . Lose Combat Pursuer 30 | . 30 . Influence Decreases 607 | . 483 124 Entered New Map 17 | . . 17 Time Decay 570 | . 473 97 Lost Part 20 | . 10 10 Squads Dispatched 3 | . 3 . Investigation 3 | . 3 . Extermination . | . . . Reinforcement . | . . . Assault . | . . . Garrison . | . . . Intercept . | . . . Searches Triggered . | . . . Construction Impeded . | . . . Haulers Reinforced . | . . . Active Scanning Responses . | . . . Cargo Convoy Interrupts . | . . . Stealth | -11 -10 -10 --------- Run | Yrd Mat Sub Distress Signals . | . . . Communications Jammed . | . . . Distress Signals . | . . . Times Spotted 43 | . 29 14 Peak Tracking Total 3 | . 3 3 Tactical Retreats 2 | . 2 . Traps | -11 -10 -10 ------- Run | Yrd Mat Sub Traps Triggered 2 | . 2 . Indirectly . | . . . Trap Hack Attempts . | . . . Triggered . | . . . Disarmed . | . . . Reprogrammed . | . . . Reused . | . . . Traps Extracted . | . . . Installed . | . . . Triggered . | . . . Machines | -11 -10 -10 ---------- Run | Yrd Mat Sub Machines Disabled . | . . . Max in Single Turn . | . . . Machines Repaired . | . . . Machines Dismantled . | . . . Machines Sabotaged . | . . . Overloaded Fab Kills . | . . . Hacking | -11 -10 -10 --------- Run | Yrd Mat Sub Machines Accessed 6 | . 6 . Terminals 5 | . 5 . Fabricators . | . . . Repair Stations . | . . . Recycling Units 1 | . 1 . Scanalyzers . | . . . Garrison Access . | . . . Total Hacks 16 | . 16 . Successful 8 | . 8 . Failed 8 | . 8 . Catastrophic 2 | . 2 . Database Lockouts . | . . . Manual 10 | . 10 . Terminals 15 | . 15 . Fabricators . | . . . Repair Stations . | . . . Recycling Units 1 | . 1 . Scanalyzers . | . . . Garrison Access . | . . . Terminal Hacks 6 | . 6 . Prototype ID Bank 2 | . 2 . Locate Traps 1 | . 1 . Hauler Manifests 1 | . 1 . Registered Components 1 | . 1 . Zone Layout 1 | . 1 . Fabricator Hacks . | . . . Repair Station Hacks . | . . . Recycling Unit Hacks 1 | . 1 . Retrieve Components 1 | . 1 . Scanalyzer . | . . . Garrison Access Hacks . | . . . Unauthorized Hacks 1 | . 1 . Terminals 1 | . 1 . Operators 1 | . 1 . Fabricators . | . . . Repair Stations . | . . . Recycling Units . | . . . Scanalyzers . | . . . Garrison Access . | . . . Data Cores Recovered . | . . . Used . | . . . Hacking Detections 3 | . 3 . Full Trace Events 1 | . 1 . Feedback Events . | . . . Feedback Blocked . | . . . Robot Schematics Acquired . | . . . Robots Built . | . . . Authchips . | . . . Time . | . . . Total Robot Build Rating . | . . . Part Schematics Acquired . | . . . Parts Built . | . . . Authchips . | . . . Time . | . . . Total Part Build Rating . | . . . Part Studies Acquired . | . . . Parts Repaired . | . . . Time . | . . . Parts Recycled . | . . . Recycled Matter . | . . . Retrieved Matter . | . . . Retrieved Components 9 | . 9 . Parts Scanalyzed . | . . . Part Schematics Acquired . | . . . Parts Damaged . | . . . Bothacking | -11 -10 -10 ------------ Run | Yrd Mat Sub Used RIF Installer . | . . . Robots Hacked . | . . . Non-combat . | . . . Combat . | . . . Robot Hacks Applied . | . . . Relay Couplers Released . | . . . Fabnet Peak Effective % . | . . . Robots Rewired . | . . . Allies Hacked . | . . . Hacks Repelled . | . . . Allies | -11 -10 -10 -------- Run | Yrd Mat Sub Total Allies . | . . . Largest Group . | . . . Highest-Rated Group . | . . . Highest-Rated Ally . | . . . Total Orders . | . . . Ally Attacks . | . . . Total Damage . | . . . Kills . | . . . Allies Corrupted . | . . . Allies Melted . | . . . Intel | -11 -10 -10 ------- Run | Yrd Mat Sub Active Infowar (turns) 623 | . 259 364 Optics 364 | . . 364 Structural 259 | . 259 . Robot Analysis Total . | . . . Derelict Logs Recovered 1 | . . 1 Drone Launches . | . . . Drone Recoveries . | . . . Exploration | -11 -10 -10 ------------- Run | Yrd Mat Sub Turns Passed 3895 | . 2244 1651 Spaces Moved 1470 | 1 721 748 Core . | . . . Treads 759 | . 541 218 Legs 181 | 1 180 . Wheels 530 | . . 530 Hover . | . . . Flight . | . . . Fastest Speed 120 | 120 120 130 Average Speed 227 | 120 270 186 Slowest Speed 480 | 120 480 480 Overloaded Moves . | . . . Propulsion Burnouts . | . . . Robots Hopped . | . . . Potential Cave-ins . | . . . Cave-ins Triggered . | . . . Exploration Rate (%) 45 | 2 92 43 Regions Visited 2 Branch Regions 1 Pre-discovered Areas 2 | . . 2 Known Exits Taken . | . . . Unknown Exits Taken 2 | 1 1 . Scrap Searched . | . . . Spaces Dug 2 | . . 2 Terrain Destroyed 25 | . . 25 Melee . | . . . Projectile 3 | . . 3 AOE 22 | . . 22 Terrain Rammed . | . . . Walls Destroyed . | . . . Machines Disabled . | . . . Actions | -11 -10 -10 --------- Run | Yrd Mat Sub Total 1827 | . 915 912 Wait 177 | . 105 72 Move 1468 | . 720 748 Hop . | . . . Pick Up 27 | . 19 8 Fast Attach 2 | . 1 1 Attach 5 | . 1 4 Detach . | . . . Swap 31 | . 12 19 Drop 17 | . 5 12 Fire 92 | . 44 48 Melee . | . . . Ram . | . . . Kick 4 | . 4 . Crush 4 | . 4 . Escape Stasis . | . . . Rewire . | . . . Trap . | . . . Miscellaneous . | . . . Route ------- -11/Scrapyard -10/Materials (discovered 5 exits: [*Mat x3] / [*Min] / [*Sub]) -10/Subcaves (discovered 1 exit: [*Mat]) History --------- Turn | Location | Event 1 | -11/Scrapyard | Discovered new exit (range 0) 1 | -11/Scrapyard | Entered Materials 322 | -10/Materials | Build established: Mutant 796 | -10/Materials | Discovered new exit (range 3) 975 | -10/Materials | Discovered new exit (range 7) 1077 | -10/Materials | Discovered new exit (range 16) 1682 | -10/Materials | Discovered new exit (range 10) 2212 | -10/Materials | Discovered new exit (range 8) 2245 | -10/Materials | Entered Subcaves 2246 | -10/Subcaves | Approached by a straggling Scientist 2249 | -10/Subcaves | Learned location of Zion (-6) 2249 | -10/Subcaves | Met a Zionite searching for "candidates" 3178 | -10/Subcaves | Discovered new exit (range 15) 3181 | -10/Subcaves | Core integrity fell below 50% 3251 | -10/Subcaves | A Subdweller sparked back to life 3251 | -10/Subcaves | A Subdweller sparked back to life 3251 | -10/Subcaves | A Subdweller sparked back to life 3313 | -10/Subcaves | Found Prototype Device 3319 | -10/Subcaves | Build established: Scavenger-Mutant 3610 | -10/Subcaves | Shifting Twisted Machinery released Sub. Machine Gun 3889 | -10/Subcaves | Core integrity fell below 20% 3896 | -10/Subcaves | Destroyed by GZ-4CI(R) with Subdweller Laser Last Messages --------------- 03767_ Dropped Broken Sub. Power Source. 03769_ Acquired Broken Sub. Power Source. 03785_ Lgt. Ion Engine destroyed. 03786_ UZ-Y8B(R) destroyed. 03801_ Acquired 45 matter. 03805_ Sub. Monowheel shoots sparks and powers down. 03808_ Dropped Med. Storage Unit. 03808_ Acquired Sub. Optics. 03812_ Dropped Signal Interpreter. 03813_ Acquired Med. Storage Unit. 03817_ Dropped Broken Sub. Monowheel. 03823_ Acquired 10 matter. 03829_ Dropped Flight Unit. 03829_ Acquired Lgt. Assault Rifle. 03870_ Acquired Sub. Power Source. 03880_ SQ-MJD(R) destroyed. 03883_ Acquired 10 matter. 03885_ Dropped Broken Sub. Power Source. 03885_ Acquired Sub. Power Source. 03896_ GZ-4CI(R) heat damages Sub. Optics. Map ----- +----------------------------------------------------+ | | | | | | | ?????????????????????????????????????????????????? | | ?????????????????????????????????????????????????? | | ?????????????????????????????????????????????????? | | ?????????????????????????????????????????????????? | | ?????????????????????????????????????????????????? | | ?????????????????????????????????????????????????? | | ?????????????????????????????????????????????????? | | ?????????????????????????????????????????????????? | | ?????????????????????????????????????????????????? | | ?????????????????????????????????????????????????? | | ?????????????????????????????????????????????????? | | ?????????????????????????????????????????????????? | | ?????????????????????????????????????????????????? | | ?????????????????????????????????????????????????? | | ??????????????????????#####??????????????????????? | | ??????????????????????# ###????????????????????? | | ?????????????????????## ????????????????????? | | ????????????????????## ?????????????????????? | | ??????????????? ??## ?????????????????????? | | ??????????????? #?# ??????????????????????? | | ??????????????? ## ??????????????????????? | | ?????????????? ## *R#??????????????????????? | | ????????????? ## !@#??????????????????????? | | ?????????????? ## "%##?????????????????????? | | ?????????????? ## ""!#####?????????????????? | | ??????????????# ## " " "##????????????????? | | ???????????????# ####" """ #????????????????? | | ?????????????????# ### """"##????????????????? | | ?????????????##### " "" ###?????????????????? | | ????????????## ## " ""#######??????????????? | | ??????????### """["#"#"" ##?????????????? | | ??????????# "&%""""""" "#?????????????? | | ??????????# &&="""""""["#?????????????? | | ??????????### ## """#"""""" ?????????????? | | ?##?##??????# ## " ### ""#???????????????? | | ? # #??????# ## ] ### |#????????????????? | | ?? #??????# #### ## %#????????????????? | | ?? ??????## #?## ### ##????????????????? | | ### ####### #?# # ## #????????????????? | | # ## #### ##== #????????????????? | | # #!&[#% #????????????????? | | # ##%&%! ! #????????????????? | | # ##### ##!&&! ##????????????????? | | ##?### # ### #= ##????????????????? | | ### #### #?### ##???????????????? | | ###??# #???## #???????????????? | | #???## #????## #???????????????? | +----------------------------------------------------+ Best States ------------- Heat Dissipation 35 Coolant Potential 50 Energy Generation 15 Energy Capacity 250 Matter Stores 300 Matter Capacity 300 Sight Range 21 Terrain Scan Density 10 Armor Coverage 150 Evasion (%) 55 Recoil Reduction 2 Item Schematics ----------------- None Robot Schematics ------------------ None Fabricated ------------ Nothing Repaired ---------- Nothing Studied --------- None Alien Tech Used ----------------- None Achievements -------------- None Challenges ------------ None Game ------ Seed MyomerHackingMapper Manual? 0 Play Time 00:16:05 Cumulative 201.1 hours Start 2025.12.19 @ 08:19:12 End 2025.12.19 @ 08:46:57 Sessions 1 Manual Loads 0 Difficulty Rogue Special Mode None Game No. 278 Rogue 277 Adventurer 1 Explorer 0 Win Type - Total 2 Types 1/0/0/1/0/0/0/0/0/0 Lore% 66 Gallery% 61 Achievement% 55 Wizard Run 0 Options --------- Layout 0 ASCII 0 Keyboard 0 Movement Numpad Keybinds 0 Fullscreen 1 Font 24/Smallcaps Map View 76x50 Zoom Use 0% Tactical HUD 1 Map Filters NONE Filters NONE Steam 1 RUN: 0a3281e0-723d-475a-a88e-862141eff294